bitfinex-derivatives/quotes_ETHF0:USTF0_20250911
["timestamp","ask_amount","ask_price","bid_price","bid_amount"]
[1757618852091,1.27208375,4429.2,4429.1,0.77518547]
[1757618852698,1.27208375,4429.2,4429.1,0.98138547]
[1757618853801,1.27208375,4429.2,4429.1,0.27868547]
[1757618854195,1.27208375,4429.2,4429.1,0.48318547]
[1757618854389,1.27208375,4429.2,4429.1,0.77518547]
[1757618855397,1.27208375,4429.2,4429.1,0.48318547]
[1757618855602,1.27208375,4429.2,4429.1,0.27868547]
[1757618870810,1.27208375,4429.2,4427.5,0.1263]
[1757618870811,0.97648375,4429.2,4427.5,0.1263]
[1757618871113,0.97648375,4429.2,4427.6,6.679e-05]
[1757618871114,0.7145,4427.7,4427.6,6.679e-05]
[1757618871314,1.41808375,4427.7,4425.6,0.292]
[1757618871611,0.5019,4427.3,4427.2,0.2045]
[1757618871817,1.50508375,4427.3,4427.2,0.4965]
[1757618872006,1.27208375,4427.3,4427.2,0.4965]
[1757618872203,1.20948375,4427.3,4427.2,0.7027]
[1757618872609,0.79058375,4427.3,4427.2,0.7027]
[1757618873212,0.99688375,4427.3,4427.2,0.7027]
[1757618873512,0.79058375,4427.3,4427.2,0.7027]
[1757618874216,0.99688375,4427.3,4427.2,0.7027]
[1757618875015,0.79058375,4427.3,4427.2,0.7027]
[1757618875620,1.20948375,4427.3,4427.2,0.7027]
[1757618875913,1.50508375,4427.3,4427.2,0.292]
[1757618876311,1.50508375,4427.3,4427.0,0.292]
[1757618876515,0.7145,4427.1,4427.0,0.4965]
[1757618877103,0.4189,4427.1,4427.0,0.8285]
[1757618877307,0.4189,4427.1,4426.5,0.1258]
[1757618877308,0.7145,4427.1,4426.6,0.292]
[1757618877504,0.3724,4427.0,4426.5,0.4325]
[1757618877720,0.409,4426.6,4426.5,0.8281]
[1757618877918,0.642,4426.6,4426.5,0.8281]
[1757618878106,0.233,4426.6,4426.5,0.8281]
[1757618878617,0.642,4426.6,4426.5,0.8281]
[1757618879520,0.233,4426.6,4426.5,0.8281]
[1757618882223,0.7125,4427.4,4427.3,0.2]
[1757618882427,0.9445,4427.4,4427.3,0.5067]
[1757618882915,0.9445,4427.4,4427.3,0.3067]
[1757618883926,0.9445,4427.4,4427.3,0.5067]
[1757618884117,0.641,4427.4,4427.3,0.7023]
[1757618887224,0.2006,4427.4,4427.3,0.7023]
[1757618887425,0.2519491,4429.0,4427.4,0.3067]
[1757618887616,0.2519491,4429.0,4427.0,0.1203]
[1757618887617,0.3035,4428.8,4427.6,0.3067]
[1757618887822,0.3035,4428.6,4427.6,0.3067]
[1757618888131,0.3035,4428.4,4427.6,0.3067]
[1757618888324,0.64024793,4428.5,4427.6,0.7023]
[1757618888325,0.2006,4427.7,4427.6,0.7023]
[1757618888730,0.3516,4427.7,4427.6,0.7023]
[1757618889232,0.8635,4427.7,4427.6,0.7023]
[1757618889624,0.8635,4427.7,4427.1,0.3067]
[1757618898333,0.56148103,4427.6,4427.5,0.2]
[1757618898537,1.27398103,4427.6,4427.5,0.627]
[1757618903838,1.27398103,4427.6,4427.5,0.5067]
[1757618904636,1.27398103,4427.6,4427.0,0.1203]
[1757618904637,0.7125,4427.2,4427.1,0.3067]
[1757618904829,1.50598103,4427.2,4427.1,0.5067]
[1757618906735,1.50598103,4427.2,4427.1,0.3067]
[1757618906937,1.50598103,4427.2,4426.1,0.3067]
[1757618906938,5.73186103,4427.2,4426.1,0.3067]
[1757618907253,0.409,4426.2,4426.1,0.5067]
[1757618907440,0.641,4426.2,4426.1,0.5067]
[1757618907638,0.641,4426.2,4426.1,0.7023]
[1757618909837,0.958,4426.2,4426.1,0.3067]
[1757618910035,1.51997974,4426.2,4426.1,0.3067]
[1757618910241,1.51997974,4426.2,4426.1,0.5021]
[1757618911736,1.51997974,4426.2,4425.6,0.3154]
[1757618912040,0.4039,4425.7,4425.6,0.708]
[1757618914729,0.7209,4425.7,4425.1,0.3154]
[1757618915946,0.1968,4425.7,4425.6,0.708]
[1757618916243,1.68979812,4428.0,4425.7,0.708]
[1757618916244,0.1968,4425.8,4425.7,0.708]
[1757618916444,0.4039,4425.8,4425.7,0.708]
[1757618918042,0.1968,4425.8,4425.7,0.708]
[1757618918847,0.4288,4425.8,4425.7,0.708]
[1757618923448,0.6359,4425.8,4425.7,0.708]
[1757618931955,0.4278,4425.8,4425.7,0.708]
[1757618934145,0.98902824,4425.8,4425.7,0.708]
[1757618934545,1.19612824,4425.8,4425.7,0.708]
[1757618934858,1.51312824,4425.8,4425.1,0.3154]
[1757618935154,1.51312824,4425.8,4425.1,0.708]
[1757618935155,0.7209,4425.2,4425.1,0.708]
[1757618935355,0.6349,4425.2,4425.1,0.708]
[1757618935856,0.4278,4425.2,4425.1,0.708]
[1757618939962,0.231,4425.2,4425.1,0.708]
[1757618942759,0.322,4426.3,4425.6,0.3037]
[1757618943062,1.52721207,4426.2,4426.1,0.3037]
[1757618943251,1.52721207,4426.2,4426.1,0.6975]
[1757618943451,1.20521207,4426.2,4426.1,0.6975]
[1757618944261,1.52721207,4426.2,4426.1,0.6975]
[1757618948763,1.52721207,4426.2,4426.1,0.5006]
[1757618950263,1.20521207,4426.2,4426.1,0.6975]
[1757618950570,0.56251207,4426.2,4426.1,0.6975]
[1757618950762,0.79251207,4426.2,4426.1,0.6975]
[1757618951068,1.20421207,4426.2,4426.1,0.6975]
[1757618951263,1.52621207,4426.2,4426.1,0.3037]
[1757618954067,5.52621207,4426.2,4425.6,0.3037]
[1757618954270,0.7337,4425.7,4425.1,0.3037]
[1757618954466,0.7337,4425.2,4425.1,0.5006]
[1757618954671,1.52621207,4425.2,4425.1,0.6975]
[1757618955473,1.20421207,4425.2,4425.1,0.6975]
[1757618956165,0.23,4425.2,4425.1,0.6975]
[1757618959271,0.322,4425.8,4425.1,0.3938]
[1757618959574,0.2112,4425.6,4425.5,0.5124]
[1757618959873,0.77262939,4425.6,4425.5,0.5124]
[1757618960076,0.77262939,4425.6,4425.5,0.8161]
[1757618961275,0.79142939,4425.6,4425.5,0.8161]
[1757618961778,1.00262939,4425.6,4425.5,0.8161]
[1757618963381,0.4412,4425.6,4425.5,0.8161]
[1757618963677,0.6417,4425.6,4425.5,0.8161]
[1757618963877,1.20312607,4425.6,4425.5,0.8161]
[1757618964676,1.52512607,4425.6,4425.5,0.8161]
[1757618966878,1.20312607,4425.6,4425.5,0.8161]
[1757618967579,1.50392607,4425.6,4425.5,0.8161]
[1757618967980,1.50392607,4425.6,4425.5,0.3037]
[1757618968467,1.50392607,4425.6,4425.5,0.4983]
[1757618972079,1.50392607,4425.6,4425.5,0.6152]
[1757618974581,1.50392607,4425.6,4425.5,0.8232]
[1757618974883,1.20312607,4425.6,4425.5,0.8232]
[1757618975078,1.50392607,4425.6,4425.1,0.3183]
[1757618975386,0.1975,4425.2,4425.1,0.7209]
[1757618975576,0.75892607,4425.2,4425.1,0.7209]
[1757618978786,0.1975,4425.2,4425.1,0.7209]
[1757618981684,0.0795,4426.5,4425.1,0.4026]
[1757618981685,0.3008,4425.9,4425.1,0.4026]
[1757618981884,0.0795,4426.5,4425.0,0.1203]
[1757618981885,0.79207804,4425.8,4425.2,0.3183]
[1757618982189,0.56207804,4425.7,4425.6,0.7209]
[1757618988092,0.229,4425.8,4425.6,0.7209]
[1757618988293,0.229,4425.8,4425.7,0.3183]
[1757618988497,0.79104912,4425.8,4425.7,0.7209]
[1757618989288,0.56204912,4425.8,4425.7,0.7209]
[1757618989693,0.56204912,4425.8,4425.5,0.1169]
[1757618989694,0.229,4426.2,4426.1,0.7209]
[1757618989888,0.229,4426.3,4426.2,0.3183]
[1757618990089,0.79104344,4426.3,4426.2,0.7209]
[1757618990292,0.98854344,4426.3,4426.2,0.7209]
[1757618991288,1.20104344,4426.3,4426.2,0.7209]
[1757618991487,1.20104344,4426.3,4425.5,0.1169]
[1757618991488,1.50184344,4426.3,4425.6,0.3183]
[1757618991694,0.1975,4425.7,4425.6,0.7209]
[1757618991886,0.3008,4426.2,4425.7,0.3183]
[1757618992086,0.1975,4426.1,4426.0,0.1169]
[1757618992298,0.1975,4426.1,4426.0,0.8378]
[1757618992594,0.41,4426.1,4426.0,0.8378]
[1757618994094,0.1975,4426.1,4426.0,0.8378]
[1757618994290,0.4265,4426.3,4426.2,0.4026]
[1757618994489,0.4265,4426.3,4426.2,0.7209]
[1757618995194,0.98798138,4426.3,4426.2,0.7209]
[1757618997600,1.20358138,4426.3,4426.2,0.7209]
[1757618997800,1.49588138,4426.3,4426.2,0.7209]
[1757618997998,1.20358138,4426.3,4426.2,0.7209]
[1757618999297,1.49588138,4426.3,4426.2,0.7209]
[1757619000205,1.20358138,4426.3,4426.2,0.7209]
[1757619000399,1.49588138,4426.3,4426.2,0.3183]
[1757619000597,1.49588138,4426.3,4425.6,0.2911]
[1757619000792,0.2065,4425.7,4425.6,0.6958]
[1757619002301,0.5213,4426.3,4426.0,0.126]
[1757619002501,0.2065,4426.1,4426.0,0.8218]
[1757619003104,0.2065,4426.6,4426.5,0.8218]
[1757619003302,0.76774688,4427.2,4427.1,0.6958]
[1757619003495,0.56123908,4427.2,4427.1,0.6958]
[1757619004305,32.553,4427.3,4427.1,0.6958]
[1757619004496,32.553,4427.3,4427.2,0.6958]
[1757619004695,33.11400662,4427.3,4427.2,0.6958]
[1757619005406,32.553,4427.3,4427.2,0.6958]
[1757619006302,0.4355,4427.6,4427.5,0.8218]
[1757619006805,0.6511,4427.6,4427.5,0.8218]
[1757619007005,1.21176889,4427.6,4427.5,0.8218]
[1757619009299,1.50406889,4427.6,4427.5,0.8218]
[1757619011008,1.50406889,4427.6,4427.5,0.49]
[1757619011210,1.50406889,4427.6,4427.0,0.126]
[1757619011508,0.9434,4427.6,4427.1,0.2911]
[1757619012207,0.4221,4427.2,4427.1,0.6958]
[1757619012601,0.7144,4427.2,4427.1,0.6958]
[1757619012804,0.4221,4427.2,4427.1,0.6958]
[1757619014306,0.2065,4427.2,4427.1,0.6958]
[1757619014504,0.6511,4427.6,4427.5,0.5307]
[1757619014807,0.7144,4427.6,4427.5,0.8218]
[1757619015000,0.7144,4428.4,4428.3,0.6958]
[1757619015196,1.50254669,4428.4,4428.3,0.6958]
[1757619015400,1.21024669,4428.4,4428.3,0.6958]
[1757619015997,0.98124669,4428.4,4428.3,0.6958]
[1757619016204,0.2065,4428.4,4428.3,0.6958]
[1757619016405,0.2065,4428.6,4428.5,0.126]
[1757619016714,0.2065,4428.6,4428.5,0.5307]
[1757619017015,0.229,4428.7,4428.5,0.8218]
[1757619017211,0.4355,4428.7,4428.6,0.6958]
[1757619017703,0.229,4428.7,4428.6,0.6958]
[1757619017901,32.7495,4429.2,4429.1,0.6958]
[1757619018100,33.30802945,4429.2,4429.1,0.6958]
[1757619018507,32.7495,4429.2,4429.1,0.6958]
[1757619018907,33.10125702,4429.2,4429.1,0.6958]
[1757619019116,33.30775702,4429.2,4429.1,0.6958]
[1757619019316,33.10125702,4429.2,4429.1,0.6958]
[1757619019919,33.52335702,4429.2,4429.1,0.6958]
[1757619020215,32.9651,4429.2,4429.1,0.6958]
[1757619020817,0.4221,4429.2,4429.1,0.6958]
[1757619021410,0.7144,4429.2,4429.1,0.6958]
[1757619021924,0.7144,4429.2,4429.1,0.49]
[1757619022112,1.27189988,4429.2,4429.1,0.2911]
[1757619022312,1.27189988,4429.2,4429.1,0.6958]
[1757619022313,0.7144,4429.2,4429.1,0.6958]
[1757619023913,0.4221,4429.2,4429.1,0.6958]
[1757619024522,0.7144,4429.2,4429.1,0.6958]
[1757619025313,1.27153094,4429.2,4429.1,0.6958]
[1757619025516,0.7144,4429.2,4429.1,0.6958]
[1757619029142,0.7209,4429.2,4429.1,0.6958]
[1757619030044,0.4184,4429.2,4429.1,0.6958]
[1757619030245,0.2065,4429.2,4429.1,0.6958]
[1757619031045,0.4184,4429.2,4429.1,0.6958]
[1757619032037,0.7209,4429.2,4429.1,0.6958]
[1757619032938,0.4184,4429.2,4429.1,0.6958]
[1757619034645,0.7209,4429.2,4429.1,0.6958]
[1757619035133,0.7209,4429.2,4428.6,0.2912]
[1757619035339,0.229,4429.4,4428.1,0.7052]
[1757619035340,0.4211,4428.2,4428.1,0.7052]
[1757619036747,0.3025,4428.5,4428.1,0.414]
[1757619036941,0.8306,4428.6,4428.5,0.5428]
[1757619037245,1.38893916,4428.6,4428.5,0.834]
[1757619037549,1.08643916,4428.6,4428.5,0.834]
[1757619038349,1.38893916,4428.6,4428.5,0.834]
[1757619038842,1.38893916,4428.6,4428.5,0.4988]
[1757619040738,1.38893916,4428.6,4428.1,0.2912]
[1757619040949,0.7236,4428.2,4428.1,0.4988]
[1757619041148,0.7236,4428.2,4428.1,0.7052]
[1757619043447,0.4211,4428.2,4428.1,0.7052]
[1757619044356,0.7236,4428.2,4428.1,0.2912]
[1757619044552,0.7236,4428.2,4427.0,0.1288]
[1757619044553,1.28349075,4428.2,4427.6,0.2912]
[1757619044752,0.3025,4427.9,4427.6,0.7052]
[1757619044953,0.55989075,4427.8,4427.7,0.2912]
[1757619045153,0.4211,4428.3,4428.2,0.7052]
[1757619045449,0.55993517,4428.3,4428.2,0.7052]
[1757619045647,0.229,4428.9,4428.3,0.2912]
[1757619045843,1.28349441,4428.8,4428.7,0.2076]
[1757619046050,1.28349441,4428.8,4428.7,0.4988]
[1757619046854,0.98099441,4428.8,4428.7,0.7052]
[1757619049052,0.55989441,4428.8,4428.7,0.7052]
[1757619056551,0.7236,4428.7,4428.6,0.2912]
[1757619056857,1.28349441,4428.7,4428.6,0.2912]
[1757619057057,1.28349441,4428.7,4428.6,0.4988]
[1757619057258,1.28349441,4428.7,4428.6,0.2912]
[1757619057554,0.7246,4428.2,4428.1,0.6953]
[1757619058248,0.7246,4428.2,4428.1,0.2912]
[1757619058859,1.28481046,4428.2,4428.1,0.4891]
[1757619059048,0.96791046,4428.2,4428.1,0.6953]
[1757619060452,1.28481046,4428.2,4428.1,0.6953]
[1757619060659,1.28481046,4428.2,4428.0,0.1288]
[1757619060660,1.28481046,4428.2,4427.6,0.292]
[1757619060854,0.7246,4427.7,4427.6,0.4899]
[1757619061158,1.28481046,4427.7,4427.6,0.4899]
[1757619062261,1.28481046,4427.7,4427.6,0.292]
[1757619062465,1.28481046,4427.7,4427.1,0.292]
[1757619062666,0.4077,4427.2,4427.1,0.6961]
[1757619062857,0.7246,4427.2,4427.1,0.6961]
[1757619063360,0.4077,4427.2,4427.1,0.6961]
[1757619063958,0.7246,4427.2,4427.1,0.6961]
[1757619064162,0.4077,4427.2,4427.1,0.6961]
[1757619065161,0.6257,4427.9,4427.8,0.1979]
[1757619065356,1.5028081,4427.9,4427.8,0.4899]
[1757619066457,0.9679081,4427.9,4427.8,0.6961]
[1757619067566,0.96775574,4427.9,4427.8,0.6961]
[1757619068756,0.56005574,4427.9,4427.8,0.6961]
[1757619068957,0.4322,4428.4,4428.3,0.4041]
[1757619069157,0.4322,4428.4,4428.3,0.6961]
[1757619069361,0.99215411,4428.4,4428.3,0.6961]
[1757619070360,1.19665411,4428.4,4428.3,0.6961]
[1757619070556,1.51355411,4428.4,4428.1,0.292]
[1757619070756,0.2032,4427.6,4427.5,0.8247]
[1757619072055,0.7246,4427.6,4427.5,0.8247]
[1757619072457,0.7246,4427.6,4427.0,0.1288]
[1757619072656,0.3169,4427.5,4427.1,0.292]
[1757619072853,0.2032,4427.2,4427.1,0.6961]
[1757619077264,0.7246,4427.6,4427.5,0.3265]
[1757619077466,0.7246,4427.6,4427.5,0.6185]
[1757619079661,0.3169,4428.1,4427.5,0.5327]
[1757619079860,0.9536,4428.1,4428.0,0.8247]
[1757619080157,0.96743924,4428.1,4428.0,0.8247]
[1757619081063,1.28433924,4428.1,4428.0,0.292]
[1757619083365,1.28433924,4428.1,4427.5,0.1286]
[1757619083366,1.28433924,4428.1,4427.6,0.292]
[1757619083563,1.28433924,4428.1,4427.0,0.1288]
[1757619083564,0.7246,4427.6,4427.0,0.1288]
[1757619084165,0.7246,4427.6,4427.1,0.292]
[1757619084966,0.7246,4427.6,4427.0,0.1288]
[1757619085366,0.7246,4427.6,4427.1,0.292]
[1757619085568,0.3169,4427.5,4427.1,0.292]
[1757619085768,0.4077,4427.2,4427.1,0.6961]
[1757619086573,0.3169,4427.5,4427.1,0.6961]
[1757619086874,0.3169,4428.0,4427.2,0.292]
[1757619087064,0.96809295,4427.9,4427.8,0.1979]
[1757619087265,1.28499295,4427.9,4427.8,0.4899]
[1757619087462,1.28499295,4427.9,4427.8,0.292]
[1757619089073,1.28499295,4427.9,4427.8,0.4917]
[1757619089478,1.28499295,4427.9,4427.8,0.292]
[1757619090073,1.28499295,4427.9,4427.5,0.4474]
[1757619090270,0.7187,4427.6,4427.5,0.3188]
[1757619090471,1.27909295,4427.6,4427.5,0.3188]
[1757619091573,1.27909295,4427.6,4427.0,0.1288]
[1757619091785,0.7187,4427.2,4427.1,0.5185]
[1757619092274,0.4156,4427.2,4427.1,0.7333]
[1757619096883,0.7187,4427.2,4427.1,0.7333]
[1757619097682,0.4156,4427.2,4427.1,0.7333]
[1757619098285,1.27943696,4427.2,4427.1,0.5185]
[1757619098583,0.97633696,4427.2,4427.1,0.7333]
[1757619099984,0.56073696,4427.2,4427.1,0.7333]
[1757619104489,0.97633696,4427.2,4427.1,0.7333]
[1757619108693,0.76163696,4427.2,4427.1,0.7333]
[1757619108896,0.56073696,4427.2,4427.1,0.7333]
[1757619111800,0.76163696,4427.2,4427.1,0.7333]
[1757619113093,0.56073696,4427.2,4427.1,0.7333]
[1757619116085,0.229,4428.0,4427.1,0.4145]
[1757619116290,0.229,4428.0,4427.8,0.5185]
[1757619116291,1.27954924,4427.9,4427.8,0.5185]
[1757619118003,1.27954924,4427.9,4427.8,0.7333]
[1757619118400,1.27954924,4427.9,4427.0,0.1288]
[1757619118401,5.50538924,4427.9,4427.1,0.3093]
[1757619118597,0.7237,4426.8,4426.7,0.5216]
[1757619118904,0.7237,4426.8,4426.7,0.7154]
[1757619119106,0.4016,4426.8,4426.7,0.7154]
[1757619123207,0.7237,4426.8,4426.7,0.7154]
[1757619124507,0.7237,4426.8,4426.0,0.1286]
[1757619124805,0.229,4427.1,4426.0,0.1286]
[1757619124806,0.4016,4426.2,4426.1,0.7154]
[1757619125003,0.3221,4426.9,4426.2,0.3093]
[1757619125205,1.28476631,4426.8,4426.7,0.2123]
[1757619125393,1.28476631,4426.8,4426.7,0.7154]
[1757619126708,0.96266631,4426.8,4426.7,0.7154]
[1757619126907,0.76076631,4426.8,4426.7,0.7154]
[1757619128303,0.96266631,4426.8,4426.7,0.7154]
[1757619128508,0.96266631,4426.8,4426.5,0.1268]
[1757619128509,1.28476631,4426.8,4426.5,0.3093]
[1757619128700,0.7237,4426.6,4426.5,0.5216]
[1757619129102,0.7237,4426.6,4426.5,0.6484]
[1757619130099,0.229,4427.0,4426.9,0.4061]
[1757619130303,0.98916216,4427.0,4426.9,0.7154]
[1757619130499,1.51316216,4427.0,4426.9,0.7154]
[1757619131105,1.58096216,4427.0,4426.6,0.3093]
[1757619131302,0.1997,4426.6,4426.5,0.5329]
[1757619131503,0.7237,4426.6,4426.5,0.2123]
[1757619131899,0.7237,4426.6,4426.5,0.5216]
[1757619132608,0.7237,4426.6,4426.5,0.3093]
[1757619134113,0.4016,4426.6,4426.5,0.8422]
[1757619135115,0.7237,4426.6,4426.5,0.8422]
[1757619136017,0.7237,4426.6,4426.5,0.3093]
[1757619136217,0.7237,4426.6,4426.5,0.5216]
[1757619138020,0.7237,4426.6,4426.5,0.6484]
[1757619138209,0.7237,4426.6,4426.5,0.8422]
[1757619141522,0.7237,4426.6,4426.0,0.1286]
[1757619141821,0.2019,4425.7,4425.6,0.3093]
[1757619142013,0.4016,4425.7,4425.6,0.7154]
[1757619144420,0.4016,4425.7,4425.6,0.5216]
[1757619144421,0.7237,4425.7,4425.6,0.5216]
[1757619146125,0.7237,4425.7,4425.6,0.7154]
[1757619147626,0.4016,4425.7,4425.6,0.7154]
[1757619147821,0.229,4425.9,4425.7,0.3006]
[1757619148021,0.229,4425.9,4425.8,0.7112]
[1757619148722,32.545,4426.7,4425.8,0.4106]
[1757619148930,32.545,4426.7,4426.5,0.8326]
[1757619148931,1.74705437,4426.6,4426.5,0.8326]
[1757619149426,0.97473437,4426.6,4426.5,0.8326]
[1757619149625,32.545,4426.7,4426.5,0.532]
[1757619149827,32.7476,4426.7,4426.6,0.7112]
[1757619151029,33.2772,4426.7,4426.6,0.7112]
[1757619151529,0.4148,4426.7,4426.6,0.7112]
[1757619153028,0.7322,4426.7,4426.6,0.7112]
[1757619155933,0.4148,4426.7,4426.6,0.7112]
[1757619156232,0.6438,4426.7,4426.6,0.7112]
[1757619157933,0.4316,4426.7,4426.6,0.7112]
[1757619158830,0.99209905,4426.7,4426.6,0.7112]
[1757619160927,0.56049905,4426.7,4426.6,0.9371]
[1757619161135,0.229,4427.1,4427.0,0.8326]
[1757619161521,0.789398,4427.1,4427.0,0.8326]
[1757619161727,0.991998,4427.1,4427.0,0.8326]
[1757619165130,0.4316,4427.1,4427.0,0.8326]
[1757619177550,0.3147,4427.9,4427.1,0.3055]
[1757619177848,0.3147,4427.7,4427.2,0.3055]
[1757619178044,0.96461956,4427.6,4427.5,0.3167]
[1757619178246,1.27931956,4427.6,4427.5,0.6222]
[1757619181851,1.19361956,4427.6,4427.5,0.8253]
[1757619182551,1.50831956,4427.6,4427.5,0.8253]
[1757619183449,1.50831956,4427.6,4427.5,0.5012]
[1757619192059,1.50831956,4427.6,4427.5,0.8253]
[1757619197961,1.27931956,4427.6,4427.5,0.8253]
[1757619198162,1.50831956,4427.6,4427.5,0.8253]
[1757619201855,1.50831956,4427.6,4427.5,0.6222]
[1757619202566,1.50831956,4427.6,4427.5,0.3055]
[1757619206863,1.27931956,4427.6,4427.5,0.3055]
[1757619207162,1.50831956,4427.6,4427.5,0.5012]
[1757619208357,1.50831956,4427.6,4427.5,0.6294]
[1757619209756,1.50831956,4427.6,4427.5,0.844]
[1757619214360,1.27931956,4427.6,4427.5,0.844]
[1757619214660,1.50831956,4427.6,4427.5,0.844]
[1757619214856,2.72843436,4427.6,4427.5,0.3055]
[1757619216172,1.50831956,4427.6,4427.5,0.5096]
[1757619216561,1.50831956,4427.6,4427.5,0.8524]
[1757619218476,1.50831956,4427.6,4427.5,0.5096]
[1757619218660,2.72843436,4427.6,4427.5,0.5096]
[1757619220474,0.7241,4427.2,4426.6,0.3009]
[1757619220770,0.7241,4426.7,4426.6,0.7196]
[1757619220969,1.20721956,4426.7,4426.6,0.7196]
[1757619221774,0.56041956,4426.7,4426.6,0.7196]
[1757619221976,0.229,4426.7,4426.6,0.7196]
[1757619222175,0.78941956,4426.7,4426.6,0.7196]
[1757619223076,0.78941956,4426.7,4426.6,0.9455]
[1757619223270,0.229,4426.7,4426.6,0.9455]
[1757619223764,0.229,4426.7,4426.6,0.7196]
[1757619224776,0.79159117,4426.7,4426.6,0.7196]
[1757619226380,0.229,4426.7,4426.6,0.7196]
[1757619226581,0.7241,4427.7,4427.6,0.505]
[1757619226781,1.49666973,4427.7,4427.6,0.505]
[1757619227480,1.28666973,4427.7,4427.6,0.505]
[1757619227679,1.21997685,4428.2,4427.6,4.64455]
[1757619227874,1.21997685,4429.1,4428.8,0.3009]
[1757619228169,0.433,4429.3,4429.2,0.4187]
[1757619228373,0.433,4429.3,4429.2,0.7196]
[1757619229481,0.432,4429.3,4429.2,0.7196]
[1757619229899,0.6458,4429.3,4429.2,0.7196]
[1757619230382,0.9521,4429.3,4429.2,0.7196]
[1757619231283,0.6458,4429.3,4429.2,0.7196]
[1757619235479,0.3063,4429.9,4429.3,0.3009]
[1757619235680,0.3063,4429.9,4429.8,0.2041]
[1757619235681,0.9521,4429.9,4429.8,0.2041]
[1757619235880,0.9521,4429.9,4429.8,0.505]
[1757619236985,0.6458,4429.9,4429.8,0.7196]
[1757619239090,0.9617,4429.9,4429.8,0.3009]
[1757619239788,1.51856512,4429.9,4429.8,0.3009]
[1757619240889,1.51856512,4429.9,4429.6,0.2924]
[1757619241084,0.7149,4429.7,4429.6,0.2924]
[1757619241291,1.27176512,4429.7,4429.6,0.2924]
[1757619243883,1.27176512,4429.7,4429.1,0.2924]
[1757619244089,0.228,4429.9,4429.1,0.2924]
[1757619244090,0.7149,4429.2,4429.1,0.2924]
[1757619244288,0.9429,4429.2,4429.1,0.2924]
[1757619244794,1.49965033,4429.2,4429.1,0.2924]
[1757619244984,1.49965033,4429.2,4428.6,0.2924]
[1757619245295,0.9429,4429.2,4428.6,0.2924]
[1757619245694,0.9429,4429.2,4429.1,0.5056]
[1757619246295,1.49973354,4429.2,4429.1,0.5056]
[1757619248697,0.9429,4429.2,4429.1,0.5056]
[1757619253199,1.50045034,4429.2,4429.1,0.5056]
[1757619253395,0.3159,4429.8,4429.1,0.7096]
[1757619253597,0.228,4429.3,4429.2,0.2924]
[1757619253803,0.78559448,4429.3,4429.2,0.7096]
[1757619258104,0.55759448,4429.3,4429.2,0.7096]
[1757619259598,0.75559448,4429.3,4429.2,0.7096]
[1757619259797,1.27249448,4429.3,4429.2,0.7096]
[1757619260100,1.27249448,4429.3,4428.6,0.2924]
[1757619260305,0.198,4428.7,4428.6,0.7096]
[1757619260601,0.55759448,4428.7,4428.6,0.7096]
[1757619261006,0.55759448,4428.7,4428.6,0.4172]
[1757619261197,1.27482308,4429.1,4429.0,0.3329]
[1757619261501,1.27482308,4429.1,4429.0,0.5369]
[1757619261809,1.27482308,4429.1,4429.0,0.8293]
[1757619263606,1.27482308,4429.1,4428.6,0.2924]
[1757619263805,0.7149,4428.7,4428.6,0.5056]
[1757619264006,0.95892308,4428.7,4428.6,0.7096]
[1757619265008,0.55992308,4428.7,4428.6,0.7096]
[1757619265205,0.3159,4429.4,4428.7,0.2924]
[1757619265512,0.198,4428.8,4428.7,0.7096]
[1757619265806,0.75796912,4428.8,4428.7,0.7096]
[1757619266805,1.27486912,4428.8,4428.7,0.7096]
[1757619268700,0.95896912,4428.8,4428.7,0.7096]
[1757619275504,0.75796912,4428.8,4428.7,0.7096]
[1757619276214,0.55996912,4428.8,4428.7,0.7096]
[1757619276412,0.55996912,4428.8,4428.7,0.4172]
[1757619276610,0.97170944,4429.3,4429.2,0.2095]
[1757619276910,1.28890944,4429.3,4429.2,0.706]
[1757619279014,1.28890944,4429.3,4429.2,0.2988]
[1757619280816,1.28890944,4429.3,4429.2,0.5083]
[1757619283914,0.56010944,4429.3,4429.2,0.706]
[1757619284109,0.228,4429.8,4429.2,0.706]
[1757619284312,0.56084323,4429.7,4429.6,0.706]
[1757619284506,0.77414323,4429.7,4429.6,0.706]
[1757619285220,0.77414323,4429.7,4427.8,0.2988]
[1757619285221,5.51539323,4429.7,4427.8,0.2988]
[1757619285423,0.7288,4427.6,4427.5,0.2988]
[1757619285714,0.7288,4427.6,4427.0,0.1292]
[1757619285715,1.51772063,4427.6,4427.0,0.1292]
[1757619285919,0.5155,4427.2,4427.1,0.5083]
[1757619286113,0.7288,4427.2,4427.1,0.5083]
[1757619286316,1.28972063,4427.2,4425.5,0.1292]
[1757619286517,0.4116,4426.7,4426.6,0.5083]
[1757619286820,0.4116,4426.7,4426.6,0.706]
[1757619287721,2.84934671,4430.5,4427.0,0.1292]
[1757619287914,1.29678973,4427.9,4427.8,0.5083]
[1757619289220,0.97958973,4427.9,4427.8,0.706]
[1757619289424,0.56798973,4427.9,4427.8,0.706]
[1757619289722,0.4413,4428.2,4428.1,0.706]
[1757619290118,1.00870304,4428.2,4428.1,0.706]
[1757619290318,0.78070304,4428.2,4428.1,0.706]
[1757619290617,0.2133,4428.2,4428.1,0.706]
[1757619293025,0.228,4428.3,4428.1,0.706]
[1757619293425,0.228,4428.3,4428.1,0.4072]
[1757619293624,0.228,4428.3,4428.2,0.2988]
[1757619293926,0.79525678,4428.3,4428.2,0.706]
[1757619294124,0.56725678,4428.3,4428.2,0.706]
[1757619294428,0.4956,4429.0,4428.9,0.5083]
[1757619294621,1.0628253,4429.0,4428.9,0.5083]
[1757619295019,1.3800253,4429.0,4428.9,0.5083]